bitfinex-derivatives/quotes_ETHF0:USTF0_20241022
["timestamp","ask_amount","ask_price","bid_price","bid_amount"]
[1729634896550,0.34103,2640.2,2640.0,0.34105]
[1729634898352,3.2078,2640.4,2639.8,0.822]
[1729634898552,3.54881,2640.4,2640.2,0.34102]
[1729634898754,3.2078,2640.4,2639.8,0.822]
[1729634898955,0.34104,2640.2,2639.9,0.34106]
[1729634899258,0.34104,2640.2,2639.5,0.34112]
[1729634899259,0.3411,2639.7,2639.5,0.34112]
[1729634899447,0.34109,2639.8,2639.5,0.34112]
[1729634899648,6.1678,2640.0,2639.4,3.2078]
[1729634899855,0.34114,2639.4,2639.2,0.425]
[1729634900047,3.2078,2639.6,2639.1,3.2078]
[1729634900048,0.34116,2639.2,2639.1,3.2078]
[1729634900251,3.3838,2639.3,2639.1,3.2078]
[1729634900444,0.34116,2639.2,2639.1,3.2078]
[1729634900750,3.30113,2639.5,2639.3,0.34114]
[1729634900950,2.96,2639.5,2639.1,3.2078]
[1729634901153,0.34115,2639.3,2639.1,3.54896]
[1729634901355,0.34116,2639.2,2639.1,3.2078]
[1729634901655,0.76456,2639.2,2639.1,3.2078]
[1729634902056,0.4234,2639.2,2639.1,3.2078]
[1729634902648,0.4234,2639.2,2639.1,0.34117]
[1729634903049,3.6063,2639.6,2639.5,0.34112]
[1729634905056,3.94741,2639.6,2639.5,0.34112]
[1729634906258,3.6063,2639.6,2639.5,0.34112]
[1729634906648,0.424,2639.9,2639.5,3.7888]
[1729634906649,3.2078,2639.9,2639.5,3.7888]
[1729634906851,3.2078,2639.9,2639.8,0.34108]
[1729634907251,3.2078,2639.9,2639.8,4.12908]
[1729634907652,0.4053,2640.1,2640.0,0.34106]
[1729634910467,0.74634,2640.1,2640.0,0.34106]
[1729634911652,0.34108,2639.9,2639.7,0.73769]
[1729634911860,0.34106,2640.0,2639.8,0.34108]
[1729634912458,0.4053,2640.1,2639.7,0.3966]
[1729634912665,4.0568,2640.4,2640.3,0.34102]
[1729634912666,3.2078,2640.4,2640.3,0.34102]
[1729634912863,3.2078,2640.7,2640.0,3.2078]
[1729634913066,0.4011,2640.9,2640.8,0.34095]
[1729634913360,0.4011,2640.9,2640.3,4.06035]
[1729634913361,3.2078,2641.0,2640.9,0.34094]
[1729634915054,3.54873,2641.0,2640.9,0.34094]
[1729634915860,3.2078,2641.0,2640.9,0.34094]
[1729634918558,0.34092,2641.1,2640.9,0.34094]
[1729634920569,0.34092,2641.1,2640.7,0.421]
[1729634920865,0.34092,2641.1,2641.0,0.34092]
[1729634921963,0.4116,2641.2,2640.7,0.421]
[1729634921964,0.75251,2641.2,2640.7,0.421]
[1729634922465,0.34092,2641.1,2641.0,0.34093]
[1729634923770,0.75251,2641.2,2641.0,0.34092]
[1729634923965,0.34092,2641.1,2641.0,0.34092]
[1729634927264,0.75251,2641.2,2641.0,0.34092]
[1729634927466,0.34092,2641.1,2641.0,0.34092]
[1729634927767,3.2078,2641.7,2641.0,6.7464]
[1729634927962,3.2078,2641.7,2641.6,0.34085]
[1729634928169,3.2078,2641.7,2641.1,5.0573]
[1729634928469,0.34088,2641.4,2641.1,0.8235]
[1729634928768,0.75719,2641.3,2641.1,0.8235]
[1729634928974,0.75719,2641.3,2640.9,0.34093]
[1729634928975,0.34092,2641.1,2640.9,0.34093]
[1729634929164,6.5841,2641.3,2641.0,0.34093]
[1729634929365,0.34092,2641.1,2641.0,0.34093]
[1729634930171,6.5841,2641.3,2641.0,0.34093]
[1729634930479,0.34091,2641.2,2640.7,0.8132]
[1729634930874,0.34092,2641.1,2641.0,0.34092]
[1729634931375,0.34091,2641.2,2641.1,0.34091]
[1729634931764,6.5841,2641.3,2640.7,0.8132]
[1729634931966,6.5841,2641.3,2641.0,0.34092]
[1729634932180,0.3409,2641.2,2641.0,0.34092]
[1729634933077,0.34092,2641.1,2641.0,0.34092]
[1729634934072,0.34091,2641.2,2641.0,0.34092]
[1729634934276,0.34091,2641.2,2641.1,0.34092]
[1729634938384,3.965,2641.3,2641.2,0.3409]
[1729634938577,3.6241,2641.3,2640.7,4.62561]
[1729634938775,0.34091,2641.2,2641.1,0.34091]
[1729634939484,0.3409,2641.2,2640.7,4.62561]
[1729634939679,0.3409,2641.2,2641.1,0.34092]
[1729634940380,1.7009,2641.2,2641.1,1.70092]
[1729634943290,1.36,2641.2,2641.1,1.70092]
[1729634943491,1.7009,2641.2,2641.1,1.70092]
[1729634943790,0.3409,2641.2,2641.1,1.70092]
[1729634945090,2.11719,2641.3,2641.2,0.3409]
[1729634946782,1.7763,2641.3,2641.2,1.7009]
[1729634946981,3.6164,2641.6,2641.5,0.34086]
[1729634946982,3.2078,2641.6,2641.5,0.34086]
[1729634947182,3.54865,2641.6,2641.5,1.70086]
[1729634947590,4.90865,2641.6,2641.5,0.34086]
[1729634948183,4.5678,2641.6,2641.5,0.34086]
[1729634948885,4.90865,2641.6,2641.5,0.34086]
[1729634949385,3.2078,2641.6,2641.5,1.70086]
[1729634949884,2.11933,2641.8,2641.7,0.34084]
[1729634950494,0.4185,2641.8,2641.7,1.70084]
[1729634950688,0.75933,2641.8,2641.7,1.70084]
[1729634951187,4.5678,2641.9,2641.8,0.34083]
[1729634951188,3.2078,2641.9,2641.8,0.34083]
[1729634951389,3.54861,2641.9,2641.8,2.12153]
[1729634952290,4.90861,2641.9,2641.8,1.7807]
[1729634952993,1.70081,2641.9,2641.8,1.7807]
[1729634953786,1.70081,2641.9,2641.8,2.12153]
[1729634954193,1.70081,2641.9,2641.8,1.7807]
[1729634955300,1.70081,2641.9,2641.8,2.12153]
[1729634956186,1.36,2641.9,2641.8,2.12153]
[1729634956494,1.36,2641.9,2641.8,2.12152]
[1729634956495,1.70081,2641.9,2641.8,2.12152]
[1729634956794,1.70081,2641.9,2641.8,0.76152]
[1729634957301,1.70081,2641.9,2641.8,1.15072]
[1729634957994,5.1456,2641.9,2641.2,3.2078]
[1729634958190,1.70085,2641.7,2641.6,0.34085]
[1729634958696,1.36,2641.7,2641.6,1.70085]
[1729634958895,0.4245,2641.9,2641.7,0.34084]
[1729634958896,1.70084,2641.8,2641.7,0.34084]
[1729634959102,0.34084,2641.7,2641.6,1.70084]
[1729634959398,1.70084,2641.8,2641.7,0.34084]
[1729634959699,0.34084,2641.7,2641.6,1.70084]
[1729634961801,1.70084,2641.8,2641.7,0.34084]
[1729634968901,1.36,2641.8,2641.6,1.36]
[1729634969108,3.6323,2641.9,2641.6,0.34085]
[1729634969109,1.70085,2641.7,2641.6,0.34085]
[1729634969905,0.34085,2641.6,2641.5,2.53025]
[1729634970111,1.70085,2641.6,2641.5,0.8294]
[1729634970413,2.08935,2641.6,2641.5,1.17026]
[1729634971112,2.08935,2641.6,2641.5,0.8294]
[1729634971808,2.08935,2641.6,2641.5,1.17026]
[1729634977013,1.7485,2641.6,2641.5,1.17026]
[1729634977214,2.08935,2641.6,2641.5,1.17026]
[1729634980414,0.3885,2641.6,2641.5,2.53026]
[1729634980914,2.08935,2641.6,2641.5,1.17026]
[1729634981111,1.7485,2641.6,2641.5,1.17026]
[1729634982518,2.08935,2641.6,2641.5,1.17026]
[1729634983814,1.7485,2641.6,2641.5,1.17026]
[1729634984121,2.08935,2641.6,2641.5,1.17026]
[1729634985415,1.7485,2641.6,2641.5,1.17026]
[1729634986116,2.08935,2641.6,2641.5,1.17026]
[1729634987523,1.7485,2641.6,2641.5,1.17026]
[1729634989921,2.08935,2641.6,2641.5,1.17026]
[1729634990817,1.7485,2641.6,2641.5,1.17026]
[1729634991022,0.3885,2641.6,2641.5,1.17026]
[1729634993424,1.7485,2641.6,2641.5,1.17026]
[1729634994121,1.7485,2641.6,2641.5,0.9147453]
[1729634996029,2.08935,2641.6,2641.5,0.9147453]
[1729634997429,0.3885,2641.6,2641.5,0.9147453]
[1729634998926,0.3409,2641.3,2641.2,0.3409]
[1729634999131,1.89451711,2641.3,2641.2,0.3409]
[1729635000224,0.19361711,2641.3,2641.2,0.3409]
[1729635000429,3.2078,2641.5,2641.4,0.34088]
[1729635000729,4.5678,2641.5,2641.4,0.34088]
[1729635001728,4.90866,2641.5,2641.4,0.34088]
[1729635002428,4.90866,2641.5,2640.8,3.6202]
[1729635002429,4.5678,2641.5,2640.8,3.6202]
[1729635002633,1.7485,2641.6,2640.5,3.2078]
[1729635002634,1.36,2640.9,2640.5,3.2078]
[1729635002835,0.34095,2640.9,2640.8,0.34095]
[1729635003028,1.70095,2640.9,2640.8,0.34095]
[1729635003527,1.36,2640.9,2640.8,0.34095]
[1729635004534,1.70094,2640.9,2640.8,0.34095]
[1729635004831,1.36,2640.9,2640.8,0.34095]
[1729635006235,1.70094,2640.9,2640.8,0.34095]
[1729635006537,1.36,2640.9,2640.8,0.34095]
[1729635013540,1.70094,2640.9,2640.8,0.34095]
[1729635013741,1.36,2640.9,2640.8,0.34095]
[1729635016043,1.70094,2640.9,2640.8,0.34095]
[1729635016244,1.36,2640.9,2640.8,0.34095]
[1729635017044,1.70094,2640.9,2640.8,0.34095]
[1729635017446,2.50302,2641.1,2640.9,0.34093]
[1729635017643,1.14302,2641.1,2641.0,0.4024]
[1729635017846,2.50302,2641.1,2641.0,0.4024]
[1729635018948,3.2078,2641.1,2641.0,2.10333]
[1729635022139,1.70089,2641.3,2641.0,1.7624]
[1729635022342,2.12669,2641.3,2641.2,0.3409]
[1729635023551,1.7858,2641.3,2641.2,0.3409]
[1729635024244,1.7858,2641.3,2641.2,0.7304]
[1729635024245,2.12669,2641.3,2641.2,0.7304]
[1729635025854,0.34089,2641.3,2641.2,0.7304]
[1729635026159,0.34089,2641.3,2641.0,0.74332]
[1729635026160,0.34092,2641.1,2641.0,0.74332]
[1729635026349,1.70092,2641.1,2641.0,0.74332]
[1729635027753,0.61361345,2641.4,2641.0,1.7624]
[1729635028056,1.70092,2641.1,2641.0,2.10332]
[1729635028261,0.34094,2640.9,2640.5,3.2078]
[1729635028557,5.42027,2640.6,2639.6,3.2078]
[1729635028747,3.2078,2640.3,2639.8,1.7839]
[1729635028954,1.2222,2640.5,2640.4,0.34101]
[1729635029153,0.422,2640.5,2640.4,0.34101]
[1729635029450,0.34099,2640.6,2640.4,0.34099]
[1729635029657,0.341,2640.5,2640.4,0.341]
[1729635030158,1.701,2640.5,2640.4,0.341]
[1729635030849,1.701,2640.5,2640.3,2.10881]
[1729635031257,1.36,2640.4,2640.3,2.10881]
[1729635032149,1.70098,2640.6,2640.3,2.10882]
[1729635032353,1.70098,2640.6,2640.4,1.701]
[1729635032657,1.36,2640.5,2640.4,0.341]
[1729635032857,1.70099,2640.5,2640.4,0.341]
[1729635033671,0.4033,2640.8,2640.4,0.341]
[1729635033861,1.70099,2640.5,2640.4,0.341]
[1729635034463,1.36,2640.5,2640.4,0.341]
[1729635035167,1.70099,2640.5,2640.4,0.34101]
[1729635035358,2.11579,2640.5,2640.3,2.10881]
[1729635035656,1.36,2640.4,2640.3,0.74881]
[1729635035862,0.75579,2640.5,2640.4,0.34101]
[1729635035863,1.7748,2640.5,2640.4,0.34101]
[1729635036058,2.11579,2640.5,2640.4,0.34101]
[1729635038060,2.11579,2640.5,2640.3,0.4078]
[1729635038061,1.7748,2640.5,2640.3,0.4078]
[1729635038256,1.70101,2640.4,2640.3,0.74881]
[1729635038663,1.36,2640.4,2640.3,0.74881]
[1729635038855,1.7604,2640.4,2640.3,0.74881]
[1729635039056,1.7748,2640.5,2640.3,0.4078]
[1729635039263,1.7748,2640.5,2640.4,0.34101]
[1729635039762,2.11579,2640.5,2640.4,0.34101]
[1729635040467,0.34101,2640.4,2640.3,0.34101]
[1729635040655,1.36,2640.4,2640.3,0.34101]
[1729635041660,0.75581,2640.5,2640.4,0.34101]
[1729635041661,1.7748,2640.5,2640.4,0.34101]
[1729635041858,2.11579,2640.5,2640.4,0.34101]
[1729635044361,0.4148,2640.5,2640.4,1.70101]
[1729635044961,0.4148,2640.5,2640.4,0.34101]
[1729635044962,1.7748,2640.5,2640.4,0.34101]
[1729635045869,1.36,2640.5,2640.4,0.34101]
[1729635048771,1.70099,2640.5,2640.4,0.34101]
[1729635049373,1.36,2640.5,2640.4,0.34101]
[1729635054169,1.36,2640.5,2640.4,1.36]
[1729635054374,1.36,2640.5,2640.4,1.70101]
[1729635056575,0.4004,2640.7,2640.4,1.36]
[1729635056576,1.36,2640.7,2640.4,1.36]
[1729635056772,0.4067,2640.7,2640.6,0.34097]
[1729635056976,1.7667,2640.7,2640.6,0.34097]
[1729635057172,1.7667,2640.7,2640.6,0.73257]
[1729635060476,0.4067,2640.7,2640.6,0.73257]
[1729635060772,1.7667,2640.7,2640.6,0.73257]
[1729635062073,0.74426,2640.8,2640.7,0.34097]
[1729635062272,2.1643,2640.8,2640.7,0.34097]
[1729635062672,2.50525,2640.8,2640.7,0.34097]
[1729635063579,3.2078,2641.2,2640.7,5.1472]
[1729635063884,3.2078,2641.2,2641.1,0.34092]
[1729635063885,1.761,2641.2,2641.1,0.34092]
[1729635064670,0.401,2641.2,2641.1,1.70092]
[1729635064872,1.761,2641.2,2641.1,0.34092]
[1729635068486,1.70086,2641.6,2641.4,0.34087]
[1729635068674,1.36,2641.6,2641.5,0.34086]
[1729635068983,2.1462,2641.7,2641.5,0.3893]
[1729635069186,2.1462,2641.7,2641.6,0.34085]
[1729635070083,1.7575,2641.7,2641.6,0.34085]
[1729635070589,4.5678,2641.8,2641.7,0.34084]
[1729635070887,4.90863,2641.8,2641.7,0.34084]
[1729635071279,1.70083,2641.8,2641.7,0.34084]
[1729635072185,6.5056,2641.8,2640.7,3.2078]
[1729635072385,0.4103,2642.0,2640.7,3.2078]
[1729635072386,1.36,2640.9,2640.8,1.14965]
[1729635072580,1.36,2640.9,2640.8,2.50965]
[1729635073287,1.36,2640.9,2640.8,6.29605]
[1729635073585,1.2237,2641.2,2641.0,0.34093]
[1729635073586,1.36,2641.1,2641.0,0.34093]
[1729635073790,1.36,2641.1,2641.0,1.70093]
[1729635073981,1.36,2641.1,2641.0,0.34093]
[1729635074976,1.36,2641.1,2640.9,0.3939]
[1729635075181,1.36,2641.0,2640.9,0.34094]
[1729635079904,1.36,2641.1,2641.0,0.34092]
[1729635082501,2.5837,2641.2,2640.9,1.36]
[1729635082705,2.5837,2641.2,2641.1,0.34092]
[1729635084103,2.5837,2641.2,2641.0,0.34092]
[1729635084308,1.36,2641.1,2641.0,0.34092]
[1729635084703,1.2237,2641.2,2641.0,1.36]
[1729635084902,0.19174494,2641.4,2641.1,1.36]
[1729635085104,0.73327,2641.5,2641.3,1.36]
[1729635085308,0.3924,2641.5,2641.4,0.34088]
[1729635086102,0.34088,2641.4,2641.3,1.70088]
[1729635086306,0.73327,2641.5,2641.4,0.34088]
[1729635088114,4.51887,2641.5,2641.4,0.34088]
[1729635088311,0.34088,2641.4,2641.3,0.34088]
[1729635089905,3.94108,2641.5,2641.4,0.34088]
[1729635090112,5.30108,2641.5,2641.4,0.34088]
[1729635090311,0.34089,2641.4,2641.2,1.7694]
[1729635090512,1.36,2641.3,2641.2,0.34089]
[1729635093612,4.9602,2641.5,2641.2,1.36]
[1729635093814,3.6002,2641.5,2641.4,0.34088]
[1729635094014,4.9602,2641.5,2641.4,0.34088]
[1729635094213,4.9602,2641.5,2641.4,0.74268]
[1729635095307,1.7524,2641.5,2641.4,0.74268]
[1729635096106,1.36,2641.6,2641.5,0.34086]
[1729635099514,1.36,2641.6,2641.4,2.1871]
[1729635099709,1.36,2641.6,2641.5,0.34086]
[1729635101214,1.70085,2641.6,2641.5,0.34086]
[1729635102323,1.36,2641.6,2641.5,0.34086]
[1729635103808,1.7656,2641.7,2641.6,0.34085]
[1729635104317,2.10644,2641.7,2641.6,0.34085]
[1729635105414,1.7656,2641.7,2641.6,0.34085]
[1729635105922,0.8318,2641.9,2641.6,1.36]
[1729635106120,0.34083,2641.8,2641.7,1.70083]
[1729635107724,0.34083,2641.8,2641.7,0.34084]
[1729635107725,1.70083,2641.8,2641.7,0.34084]
[1729635107916,1.70083,2641.8,2641.4,5.3949]
[1729635107917,1.36,2641.8,2641.4,5.3949]
[1729635108119,0.34084,2641.7,2641.6,0.34084]
[1729635109524,1.70084,2641.7,2641.6,0.34084]
[1729635111625,1.36,2641.7,2641.6,0.34084]
[1729635111924,1.70084,2641.7,2641.6,0.34084]
[1729635114114,1.36,2641.7,2641.6,0.34084]
[1729635117724,1.70084,2641.7,2641.6,0.34084]
[1729635120521,1.70085,2641.7,2641.6,0.34085]
[1729635122318,1.36,2641.7,2641.6,0.34085]
[1729635122525,4.90863,2641.8,2641.7,0.34084]
[1729635122924,8.69423,2641.8,2641.7,0.34084]
[1729635123126,4.90863,2641.8,2641.7,0.34084]
[1729635123325,8.69423,2641.8,2641.7,0.34084]
[1729635123928,5.48643,2641.8,2641.7,0.34084]
[1729635124130,8.69423,2641.8,2641.7,0.34084]
[1729635124725,8.3534,2641.8,2641.4,2.1475]
[1729635124937,4.90863,2641.8,2641.7,0.34084]
[1729635125231,8.69423,2641.8,2641.7,0.34084]
[1729635126633,5.48643,2641.8,2641.7,0.34084]
[1729635127240,0.34085,2641.7,2641.6,0.34084]
[1729635127440,1.70085,2641.7,2641.6,0.34084]
[1729635128542,0.34084,2641.7,2641.6,0.34084]
[1729635128839,1.70083,2641.8,2641.7,0.34084]
[1729635131453,1.36,2641.8,2641.7,0.34084]
[1729635131752,1.70083,2641.8,2641.7,0.34084]
[1729635134945,0.34083,2641.8,2641.7,0.34084]
[1729635138149,0.34083,2641.8,2641.7,0.73724]
[1729635139237,0.34083,2641.8,2641.7,0.58029396]
[1729635146650,3.54862,2641.9,2641.8,0.34083]
[1729635146853,5.30982,2641.9,2641.8,0.34083]
[1729635147055,9.09542,2641.9,2641.8,0.34083]
[1729635149556,9.09542,2641.9,2641.8,0.73673]
[1729635150250,5.88762,2641.9,2641.8,0.73673]
[1729635151360,2.10202,2641.9,2641.8,0.73673]
[1729635154751,5.30982,2641.9,2641.8,0.3959]
[1729635154955,5.30982,2641.9,2641.8,0.73673]
[1729635156260,3.94982,2641.9,2641.8,0.73673]
[1729635157161,3.94982,2641.9,2641.8,0.3959]
[1729635157759,3.94982,2641.9,2641.8,0.15847337]
[1729635157963,0.34083,2641.8,2641.7,0.73723]
[1729635161157,3.94982,2641.9,2641.8,0.34083]
[1729635161669,0.74202,2641.9,2641.8,0.34083]
[1729635162070,3.94982,2641.9,2641.8,0.34083]
[1729635162869,3.2078,2641.9,2641.8,0.34083]
[1729635163269,3.2078,2641.9,2641.8,0.73083]
[1729635163864,3.54861,2641.9,2641.8,0.73083]
[1729635164059,3.54861,2641.9,2641.8,2.09083]
[1729635165273,4.90861,2641.9,2641.8,0.39]
[1729635165473,0.34084,2641.7,2641.4,0.3851]
[1729635165674,0.34084,2641.7,2641.6,0.34084]
[1729635165879,0.73663,2641.8,2641.7,0.34084]
[1729635166170,0.3958,2641.8,2641.7,0.34084]
[1729635166566,0.73663,2641.8,2641.7,0.34084]
[1729635166865,0.3958,2641.8,2641.7,0.34084]
[1729635167070,1.7558,2641.8,2641.7,0.34084]
[1729635167674,0.3958,2641.8,2641.7,1.70084]
[1729635167976,0.73663,2641.8,2641.7,1.70084]
[1729635168273,1.7558,2641.8,2641.7,0.34084]
[1729635168475,2.09663,2641.8,2641.7,0.34084]
[1729635168875,1.7558,2641.8,2641.7,0.34084]
[1729635169867,0.3958,2641.8,2641.7,0.34084]
[1729635170268,0.3958,2641.8,2641.7,1.70084]
[1729635170767,0.73663,2641.8,2641.7,1.70084]
[1729635175680,2.09663,2641.8,2641.7,1.70084]
[1729635176083,2.09663,2641.8,2641.7,1.35555666]
[1729635176576,2.09663,2641.8,2641.7,1.69639666]
[1729635177169,2.09663,2641.8,2641.7,0.34084]
[1729635179179,0.34084,2641.7,2641.6,1.36]
[1729635179381,0.34084,2641.7,2641.6,0.34085]
[1729635179574,1.7558,2641.8,2641.5,1.36]
[1729635179774,0.34085,2641.6,2641.5,1.70085]
[1729635181677,9.7134,2641.6,2641.3,0.8035]
[1729635181874,9.7134,2641.6,2640.6,1.36]
[1729635181875,1.36,2641.4,2640.6,1.36]
[1729635182082,1.36,2640.9,2640.8,0.34094]
[1729635182383,1.36,2640.9,2640.8,0.74094]
[1729635182976,1.36,2640.9,2640.8,1.76]
[1729635183182,0.3885,2641.0,2640.9,0.34094]
[1729635183378,1.7485,2641.0,2640.9,1.70094]
[1729635183776,1.36,2641.0,2640.9,1.70094]
[1729635183975,3.2078,2641.1,2641.0,0.34093]
[1729635184292,4.90872,2641.1,2641.0,0.34093]
[1729635184484,4.90872,2641.1,2641.0,0.72843]
[1729635186984,4.5678,2641.1,2641.0,0.72843]
[1729635192591,4.5678,2641.1,2641.0,2.08843]
[1729635193391,3.2078,2641.1,2641.0,2.08843]
[1729635194894,4.90872,2641.1,2641.0,2.08843]
[1729635195100,4.5678,2641.1,2641.0,2.08843]
[1729635196797,4.5678,2641.1,2641.0,0.72843]
[1729635205205,3.2078,2641.1,2641.0,2.08843]
[1729635207198,0.4015,2641.3,2641.0,5.5339]
[1729635207398,0.18712421,2641.4,2641.3,0.34089]
[1729635207600,0.18712421,2641.4,2641.3,1.70089]
[1729635211496,1.36,2641.4,2639.3,0.98800927]
[1729635211698,1.70096,2640.8,2640.7,0.34097]
[1729635211999,1.70096,2640.8,2640.6,0.34097]
[1729635212204,1.7759,2640.7,2640.6,0.34097]
[1729635212590,1.7759,2640.7,2640.6,4.12817]
[1729635213002,1.7759,2640.7,2640.4,2.1773]
[1729635213201,1.36,2640.6,2640.5,0.34099]
[1729635213901,1.70099,2640.6,2640.5,0.34099]
[1729635214707,1.36,2640.6,2640.4,2.1773]
[1729635214896,0.34099,2640.6,2640.5,1.36]
[1729635215604,0.34099,2640.6,2640.5,1.70099]
[1729635215904,0.34099,2640.6,2640.5,1.36]
[1729635217105,0.34099,2640.5,2640.4,2.5183]
[1729635219309,1.36,2640.6,2640.4,2.1773]
[1729635219608,1.70099,2640.6,2640.5,0.34099]
[1729635220605,0.34099,2640.5,2640.4,2.51829]
[1729635220810,1.70099,2640.6,2640.5,0.34099]
[1729635221007,0.34099,2640.6,2640.5,1.70099]
[1729635221911,2.11687,2640.7,2640.6,0.34098]
[1729635222098,0.4159,2640.7,2640.6,1.70098]
[1729635222503,0.75687,2640.7,2640.6,1.70098]
[1729635222814,2.11687,2640.7,2640.6,0.34098]
[1729635225203,1.7759,2640.7,2640.6,0.34098]
[1729635225499,2.11687,2640.7,2640.6,0.34098]
[1729635226100,0.34105,2640.1,2639.4,3.2078]
[1729635226407,1.36,2639.9,2639.8,0.812]
[1729635226601,1.36,2639.9,2639.8,2.51308]
[1729635226801,1.36,2639.9,2639.8,6.30108]
[1729635228004,0.53207627,2640.1,2640.0,0.34105]
[1729635228205,1.70105,2640.1,2640.0,0.34105]
[1729635228506,1.70104,2640.1,2640.0,0.34105]
[1729635229510,1.89020797,2640.1,2640.0,0.34105]
[1729635230215,1.70104,2640.1,2640.0,0.34105]
[1729635230905,1.89238481,2640.1,2640.0,0.34105]
[1729635231302,4.022,2640.3,2640.0,5.148]
[1729635231507,4.022,2640.3,2639.9,0.3934]
[1729635231508,1.36,2640.2,2640.1,1.36]
[1729635231709,1.36,2640.2,2640.1,0.34104]
[1729635232306,1.36,2640.2,2639.8,4.0198]
[1729635232506,1.36,2639.9,2639.8,1.15308]
[1729635233008,1.36,2639.9,2639.8,4.94108]
[1729635233214,1.75,2639.9,2639.8,4.94108]
[1729635234005,1.75,2639.9,2639.8,1.15308]
[1729635234211,1.75,2639.9,2639.8,4.94108]
[1729635235314,1.75,2639.9,2639.8,0.34108]
[1729635235315,2.09107,2639.9,2639.8,0.34108]
[1729635236509,0.34109,2639.8,2639.7,0.34108]
[1729635236709,1.70109,2639.8,2639.7,0.34108]
[1729635236915,1.36,2639.8,2639.7,4.12908]
[1729635238715,2.383,2639.8,2639.4,3.2078]
[1729635239013,10.082,2638.1,2635.9,0.25870674]
[1729635239214,0.3415,2636.6,2636.3,3.2078]
[1729635239412,3.2078,2636.4,2635.8,1.36]
[1729635239709,3.2078,2636.6,2636.3,3.2078]
[1729635239909,4.5678,2636.6,2636.5,3.2078]
[1729635240329,3.2078,2636.6,2636.5,3.2078]
[1729635241510,3.5493,2636.6,2636.5,3.2078]
[1729635241821,3.2078,2636.6,2636.5,3.2078]
[1729635242010,3.5493,2636.6,2636.5,3.2078]
[1729635247214,6.5093,2636.6,2636.5,3.2078]
[1729635252528,3.3015,2636.6,2636.5,3.2078]
[1729635252721,6.5093,2636.6,2636.5,3.2078]
[1729635254426,3.3015,2636.6,2636.5,3.2078]
[1729635254619,6.5093,2636.6,2636.5,3.2078]
[1729635254918,3.3015,2636.6,2636.5,3.2078]
[1729635255125,6.5093,2636.6,2636.5,3.2078]
[1729635255519,3.3015,2636.6,2636.5,3.2078]
[1729635255719,6.5093,2636.6,2636.5,3.2078]
[1729635257718,0.34158,2636.0,2635.9,0.422]
[1729635257924,3.2078,2636.0,2635.9,0.76359]
[1729635258225,3.54938,2636.0,2635.9,0.422]
[1729635259324,6.1678,2636.0,2635.8,0.3922]
[1729635259520,0.34165,2635.5,2635.3,0.34166]
[1729635259717,6.1678,2635.4,2635.3,0.34166]
[1729635259920,6.50946,2635.4,2635.2,0.34167]
[1729635260125,3.30167,2635.3,2635.1,0.34168]
[1729635260429,2.96,2635.3,2635.2,0.34168]
[1729635262426,3.2078,2635.4,2635.2,3.7944]
[1729635262627,2.5665,2635.4,2635.3,4.13607]
[1729635262829,6.50942,2635.7,2635.3,3.7944]
[1729635263030,6.50942,2635.7,2635.5,0.34163]
[1729635263530,6.50942,2635.7,2635.5,4.13603]
[1729635263730,6.1678,2635.7,2635.6,0.34163]
[1729635264127,6.1678,2635.7,2635.6,4.13603]
[1729635264323,2.96,2635.7,2635.6,4.13603]
[1729635264731,6.1678,2635.7,2635.6,4.13603]
[1729635265234,6.50941,2635.7,2635.6,4.13603]
[1729635265836,6.1678,2635.7,2635.6,4.13603]
[1729635266027,6.50941,2635.7,2635.6,4.13603]
[1729635266235,6.50941,2635.7,2635.6,3.7944]
[1729635266428,0.34165,2635.5,2635.3,0.34165]
[1729635266726,6.1678,2635.7,2635.4,4.13605]
[1729635266926,3.30164,2635.5,2635.4,0.34165]
[1729635267129,3.30164,2635.5,2635.3,0.34165]
[1729635267323,3.30165,2635.5,2635.3,0.34165]
[1729635267734,3.30165,2635.5,2635.4,0.34165]
[1729635267735,2.96,2635.5,2635.4,0.34165]
[1729635268038,0.34163,2635.6,2635.4,0.34165]
[1729635268438,3.2078,2635.7,2635.5,3.7944]
[1729635268630,3.2078,2636.0,2635.2,3.7944]
[1729635268939,3.2078,2636.0,2635.4,2.96]
[1729635269234,0.34156,2636.2,2636.1,0.34156]
[1729635269437,0.34156,2636.2,2636.0,0.34157]
[1729635269736,3.2078,2636.2,2635.8,0.4002]
[1729635269929,2.96,2636.3,2635.8,0.4002]
[1729635270227,3.2078,2636.4,2635.8,0.4002]
[1729635270228,0.34159,2635.9,2635.8,0.4002]
[1729635270430,0.34163,2635.6,2635.5,0.34164]
[1729635270637,3.54942,2635.7,2635.5,0.34164]
[1729635270834,3.54942,2635.7,2635.3,0.34167]
[1729635271136,0.34161,2635.7,2635.6,0.34163]
[1729635271532,0.34161,2635.7,2635.6,4.13603]
[1729635271939,0.34161,2635.7,2635.6,3.7944]
[1729635272134,3.54941,2635.7,2635.6,3.7944]
[1729635272338,0.34161,2635.7,2635.6,0.34163]
[1729635272634,0.34161,2635.8,2635.6,4.13603]
[1729635272940,0.34161,2635.7,2635.6,0.34163]
[1729635273333,0.34161,2635.7,2635.6,4.13603]